bitfinex/quotes_BTCUSD_20220306
["timestamp","ask_amount","ask_price","bid_price","bid_amount"]
[1646599409598,0.00205251,38888.0,38880.0,3.30013007]
[1646599410297,0.00205251,38888.0,38882.0,0.19979908]
[1646599410496,0.00205251,38888.0,38881.0,0.36349588]
[1646599410799,0.00205251,38888.0,38880.0,3.30013007]
[1646599410997,0.06638757,38888.0,38880.0,3.30013007]
[1646599411400,0.06638757,38888.0,38881.0,0.21378925]
[1646599411599,0.06638757,38888.0,38880.0,3.30013007]
[1646599411804,0.00205251,38888.0,38880.0,3.30013007]
[1646599412856,0.00205251,38888.0,38881.0,0.19081211]
[1646599413058,0.00205251,38888.0,38880.0,3.30013007]
[1646599413458,0.06433862,38886.0,38880.0,3.30013007]
[1646599417408,0.00205251,38888.0,38880.0,3.30013007]
[1646599418910,0.00195913,38886.0,38880.0,3.30013007]
[1646599421649,0.00195913,38886.0,38881.0,0.064333]
[1646599422950,0.00195913,38886.0,38880.0,3.30013007]
[1646599423747,0.10198237,38888.0,38880.0,3.30013007]
[1646599424008,0.1,38887.0,38880.0,3.4601739]
[1646599424208,0.1,38887.0,38880.0,3.30013007]
[1646599424409,0.06433968,38885.0,38880.0,3.30013007]
[1646599426310,0.06433968,38885.0,38881.0,0.19825201]
[1646599426511,0.06433968,38885.0,38880.0,3.30013007]
[1646599427660,0.06433968,38885.0,38881.0,0.16325833]
[1646599427853,0.16433563,38887.0,38880.0,3.30013007]
[1646599428053,0.16433563,38887.0,38880.0,3.30006643]
[1646599428855,0.16433563,38887.0,38880.0,3.4647384]
[1646599429055,0.00195655,38884.0,38880.0,3.4647384]
[1646599429255,0.16433563,38887.0,38884.0,0.0039131]
[1646599430054,0.06433563,38887.0,38884.0,0.0039131]
[1646599433905,0.16433563,38887.0,38884.0,0.0039131]
[1646599434104,0.16433563,38887.0,38886.0,0.00239154]
[1646599434306,0.54933263,38887.0,38886.0,0.00239154]
[1646599435666,0.61367563,38887.0,38886.0,0.00239154]
[1646599436164,0.81367563,38887.0,38886.0,0.00239154]
[1646599437166,0.2,38887.0,38886.0,0.00239154]
[1646599437367,0.3,38888.0,38886.0,0.00239154]
[1646599437566,0.00017999,38892.0,38886.0,0.05399154]
[1646599437769,0.00017999,38892.0,38887.0,0.36349588]
[1646599437966,0.00017999,38892.0,38888.0,0.22025541]
[1646599438169,0.00017999,38892.0,38889.0,0.064311]
[1646599438369,0.00286689,38893.0,38891.0,0.19396491]
[1646599438569,0.00017999,38892.0,38891.0,0.24556491]
[1646599438765,0.00017999,38892.0,38891.0,0.0516]
[1646599439402,0.00286689,38893.0,38891.0,0.0516]
[1646599439802,0.00304688,38893.0,38891.0,0.0516]
[1646599440604,0.00286689,38893.0,38891.0,0.0516]
[1646599442406,0.00286689,38893.0,38886.0,0.05399154]
[1646599442850,0.1,38892.0,38886.0,0.00239154]
[1646599443049,0.1,38891.0,38886.0,0.00239154]
[1646599444149,0.1,38891.0,38885.0,0.18174902]
[1646599444350,0.16433181,38891.0,38885.0,0.18174902]
[1646599444751,0.16433181,38891.0,38885.0,0.00128364]
[1646599444954,0.484997,38890.0,38885.0,0.00128364]
[1646599445351,0.484997,38886.0,38885.0,0.00128364]
[1646599445954,0.684997,38886.0,38885.0,0.00128364]
[1646599447205,0.784997,38886.0,38885.0,0.00128364]
[1646599447401,1.06286148,38886.0,38885.0,0.00128364]
[1646599447601,1.23191759,38886.0,38885.0,0.00128364]
[1646599448200,1.23191759,38886.0,38884.0,9.674e-05]
[1646599448403,1.69949849,38885.0,38884.0,9.674e-05]
[1646599448606,2.08034448,38885.0,38884.0,9.674e-05]
[1646599448802,1.80247631,38885.0,38884.0,9.674e-05]
[1646599449207,1.81917863,38885.0,38880.0,3.28461413]
[1646599449406,1.0500232,38881.0,38880.0,1.9437402]
[1646599449605,0.14613,38881.0,38880.0,0.7957402]
[1646599449809,0.01285,38881.0,38880.0,1.15923608]
[1646599450006,0.1,38885.0,38880.0,1.1806842]
[1646599450259,0.159,38884.0,38881.0,0.384931]
[1646599450656,0.15561464,38883.0,38880.0,0.7957402]
[1646599451270,0.74848888,38882.0,38880.0,0.7957402]
[1646599451459,0.74848888,38881.0,38880.0,0.7957402]
[1646599451656,1.04848888,38881.0,38880.0,0.7957402]
[1646599452059,1.18018085,38881.0,38880.0,0.7957402]
[1646599452458,1.24454185,38881.0,38880.0,0.7957402]
[1646599454303,1.04848888,38881.0,38880.0,0.7957402]
[1646599458764,1.04848888,38881.0,38880.0,0.79849902]
[1646599459569,0.2,38881.0,38880.0,0.79849902]
[1646599459765,0.2,38882.0,38880.0,0.79849902]
[1646599459966,0.46062666,38885.0,38882.0,9.755e-05]
[1646599459967,0.2,38884.0,38882.0,9.755e-05]
[1646599460167,0.4,38884.0,38882.0,9.755e-05]
[1646599460364,0.61484949,38884.0,38882.0,9.755e-05]
[1646599460566,0.51484949,38884.0,38882.0,9.755e-05]
[1646599460766,0.3,38884.0,38882.0,9.755e-05]
[1646599460967,0.2,38884.0,38882.0,9.755e-05]
[1646599461411,0.3,38884.0,38882.0,9.755e-05]
[1646599462010,0.48347959,38884.0,38882.0,9.755e-05]
[1646599462411,0.384993,38883.0,38882.0,9.755e-05]
[1646599463811,0.86847259,38884.0,38883.0,0.00275646]
[1646599464418,0.684993,38884.0,38883.0,0.00275646]
[1646599464613,0.81670737,38884.0,38883.0,0.00275646]
[1646599464815,0.684993,38884.0,38883.0,0.00275646]
[1646599470099,0.684993,38884.0,38883.0,0.00268496]
[1646599475856,0.3,38884.0,38883.0,0.00268496]
[1646599476508,0.2,38884.0,38883.0,0.00268496]
[1646599478606,0.195,38884.0,38883.0,0.00268496]
[1646599479007,0.1,38886.0,38883.0,0.00268496]
[1646599479306,0.2,38884.0,38883.0,0.00268496]
[1646599479708,0.584993,38884.0,38883.0,0.00268496]
[1646599481352,1.07733403,38884.0,38883.0,0.00268496]
[1646599481554,1.27733403,38884.0,38883.0,0.00268496]
[1646599486411,0.91670737,38884.0,38883.0,0.00268496]
[1646599486711,0.13171437,38884.0,38883.0,0.00268496]
[1646599487010,0.2,38885.0,38883.0,0.00268496]
[1646599489262,0.2,38885.0,38883.0,0.18988604]
[1646599492606,0.384993,38884.0,38883.0,0.18988604]
[1646599492808,0.2,38885.0,38883.0,0.18988604]
[1646599493210,0.384993,38884.0,38883.0,0.18988604]
[1646599493506,0.2,38885.0,38883.0,0.18988604]
[1646599500105,0.2,38885.0,38883.0,0.18979112]
[1646599501905,0.2,38884.0,38883.0,0.18979112]
[1646599503860,0.2,38885.0,38883.0,0.18979112]
[1646599505262,0.2,38884.0,38883.0,0.18979112]
[1646599507903,0.384993,38886.0,38883.0,0.18979112]
[1646599509202,0.14911449,38885.0,38883.0,0.18979112]
[1646599509402,0.29822898,38885.0,38883.0,0.18979112]
[1646599509605,0.384993,38884.0,38883.0,0.00259004]
[1646599509906,0.74561966,38884.0,38883.0,0.00259004]
[1646599510159,1.04561966,38884.0,38883.0,0.00259004]
[1646599510460,1.17733403,38884.0,38883.0,0.00259004]
[1646599512462,1.37492332,38884.0,38883.0,0.00259004]
[1646599512862,1.27492332,38884.0,38883.0,0.00259004]
[1646599513463,1.37492332,38884.0,38883.0,0.00259004]
[1646599513926,0.43171437,38884.0,38883.0,0.00259004]
[1646599514130,0.81670737,38884.0,38883.0,0.00259004]
[1646599514324,0.684993,38884.0,38883.0,0.00259004]
[1646599514526,0.83410749,38884.0,38883.0,0.00259004]
[1646599514827,0.98322198,38884.0,38883.0,0.00259004]
[1646599515028,1.18314806,38884.0,38883.0,0.00259004]
[1646599515426,1.31486243,38884.0,38883.0,0.00259004]
[1646599516524,1.21486243,38884.0,38883.0,0.00259004]
[1646599516728,0.82986943,38884.0,38883.0,0.00259004]
[1646599517129,0.69815506,38884.0,38883.0,0.00259004]
[1646599517327,1.08314806,38884.0,38883.0,0.00259004]
[1646599517757,1.21486243,38884.0,38883.0,0.00259004]
[1646599517958,1.01493635,38884.0,38883.0,0.00259004]
[1646599518356,0.88322198,38884.0,38883.0,0.00259004]
[1646599518656,1.01493635,38884.0,38883.0,0.00259004]
[1646599518857,0.88322198,38884.0,38883.0,0.00259004]
[1646599519058,1.17345444,38884.0,38883.0,0.00259004]
[1646599519263,1.04174007,38884.0,38883.0,0.00259004]
[1646599519458,1.17345444,38884.0,38883.0,0.00259004]
[1646599521405,1.17345444,38884.0,38883.0,0.00248985]
[1646599522209,0.42994335,38884.0,38883.0,0.00248985]
[1646599522609,0.13171437,38889.0,38884.0,0.26445181]
[1646599522808,0.103,38890.0,38887.0,0.20047026]
[1646599523010,0.1,38890.0,38887.0,0.20047026]
[1646599524009,0.3,38891.0,38887.0,0.20047026]
[1646599524413,0.3,38891.0,38888.0,0.064323]
[1646599524608,0.2,38891.0,38888.0,0.064323]
[1646599524809,0.3,38891.0,38888.0,0.064323]
[1646599526257,0.1,38891.0,38888.0,0.064323]
[1646599526757,0.20019414,38892.0,38888.0,0.064323]
[1646599527457,0.384993,38891.0,38888.0,0.064323]
[1646599528457,0.20019414,38892.0,38888.0,0.064323]
[1646599528658,0.10019414,38892.0,38888.0,0.064323]
[1646599528905,0.1,38892.0,38888.0,0.064323]
[1646599529111,0.00019414,38892.0,38889.0,0.436438]
[1646599529307,0.00019414,38892.0,38891.0,0.384816]
[1646599529508,0.00019414,38892.0,38891.0,0.436416]
[1646599530107,0.00286689,38893.0,38891.0,0.436416]
[1646599530309,0.00286689,38893.0,38892.0,0.384805]
[1646599530510,0.00306103,38893.0,38892.0,0.436404]
[1646599530708,0.00306103,38893.0,38892.0,0.0516]
[1646599530910,0.00306103,38893.0,38892.0,0.436404]
[1646599531210,0.00286689,38893.0,38892.0,0.436404]
[1646599532413,0.00286689,38893.0,38892.0,0.74941725]
[1646599532671,0.00286689,38893.0,38892.0,0.436404]
[1646599532871,0.00286689,38893.0,38892.0,0.7964098]
[1646599533673,0.00286689,38893.0,38892.0,0.436404]
[1646599534069,0.00286689,38893.0,38892.0,0.43779803]
[1646599543265,0.02662701,38893.0,38892.0,0.43779803]
[1646599544507,0.00286689,38893.0,38892.0,0.43779803]
[1646599544905,0.00286689,38893.0,38892.0,0.38619803]
[1646599545309,0.00286689,38893.0,38892.0,0.00139403]
[1646599545505,0.00286689,38893.0,38892.0,0.38619903]
[1646599545709,0.00286689,38893.0,38892.0,0.38619803]
[1646599546309,0.00286689,38893.0,38892.0,0.00139403]
[1646599548752,0.00286689,38893.0,38892.0,0.384804]
[1646599549654,0.00286689,38893.0,38892.0,0.384805]
[1646599549857,0.0022,38893.0,38892.0,0.449124]
[1646599550054,0.0022,38893.0,38892.0,0.06432]
[1646599551507,0.0022,38893.0,38892.0,0.449124]
[1646599553709,0.0022,38893.0,38892.0,0.45051803]
[1646599555972,0.00239413,38894.0,38893.0,0.88919299]
[1646599556570,0.0022,38894.0,38893.0,0.38919299]
[1646599557270,0.0022,38894.0,38893.0,0.74919879]
[1646599560918,0.0022,38894.0,38893.0,0.38919299]
[1646599563671,0.0022,38894.0,38893.0,0.39041163]
[1646599566272,0.0022,38894.0,38893.0,0.00561863]
[1646599566709,0.0022,38894.0,38893.0,0.39041063]
[1646599569010,0.0022,38894.0,38893.0,0.00561863]
[1646599571267,0.0022,38894.0,38893.0,0.39041163]
[1646599574321,0.0022,38894.0,38893.0,0.44201163]
[1646599577025,0.0022,38894.0,38893.0,0.80201743]
[1646599580268,0.00539328,38895.0,38893.0,0.80201743]
[1646599580474,0.00286689,38897.0,38895.0,1.02582]
[1646599580475,0.00220689,38897.0,38895.0,1.02582]
[1646599580669,0.00088689,38897.0,38896.0,1.4666838]
[1646599580874,0.0022,38898.0,38896.0,1.4666838]
[1646599581069,0.0022,38898.0,38897.0,1.3892518]
[1646599581272,0.0033,38902.0,38899.0,0.26718283]
[1646599581513,0.0033,38902.0,38900.0,0.95068842]
[1646599581714,0.2543999,38904.0,38902.0,1.12582]
[1646599581911,0.2543999,38904.0,38903.0,0.8221018]
[1646599582110,0.2543999,38904.0,38903.0,0.462096]
[1646599582308,0.0022,38908.0,38903.0,0.462096]
[1646599582309,9.99e-05,38906.0,38905.0,0.384653]
[1646599582513,9.99e-05,38906.0,38905.0,0.7962588]
[1646599582710,0.0022,38908.0,38905.0,0.80053018]
[1646599582913,0.0022,38908.0,38906.0,0.74891818]
[1646599583111,0.0022,38908.0,38906.0,0.82746369]
[1646599584512,0.00239394,38908.0,38906.0,0.82746369]
[1646599584913,0.00239394,38908.0,38906.0,0.46318651]
[1646599585557,0.0022,38908.0,38906.0,0.46318651]
[1646599585760,0.0022,38908.0,38906.0,0.02694551]
[1646599585761,0.00239785,38908.0,38906.0,0.02694551]
[1646599585962,0.387193,38907.0,38906.0,0.02694551]
[1646599586163,0.487193,38907.0,38906.0,0.02694551]
[1646599586359,0.1022,38907.0,38906.0,0.02694551]
[1646599586764,0.46647718,38907.0,38906.0,0.02694551]
[1646599587160,1.05147018,38907.0,38906.0,0.02694551]
[1646599587360,0.66647718,38907.0,38906.0,0.02694551]
[1646599587559,0.3022,38907.0,38906.0,0.02694551]
[1646599588161,0.66647718,38907.0,38906.0,0.02694551]
[1646599588562,0.46647718,38907.0,38906.0,0.02694551]
[1646599588760,0.55647718,38907.0,38906.0,0.02694551]
[1646599589013,0.46427718,38907.0,38906.0,0.02694551]
[1646599589219,0.65427718,38907.0,38906.0,0.02820848]
[1646599589614,0.46427718,38907.0,38906.0,0.02820848]
[1646599589816,0.66427718,38907.0,38906.0,0.02820848]
[1646599590715,0.66427718,38907.0,38906.0,0.65226434]
[1646599590915,0.3,38907.0,38906.0,0.65226434]
[1646599591121,0.2,38907.0,38906.0,0.65226434]
[1646599591317,0.00239362,38908.0,38906.0,0.65226434]
[1646599591715,0.0022,38908.0,38907.0,0.02694551]
[1646599591922,0.36501428,38908.0,38907.0,0.02694551]
[1646599592415,0.75000728,38908.0,38907.0,0.02694551]
[1646599592660,0.36482066,38908.0,38907.0,0.02694551]
[1646599593260,0.0022,38908.0,38907.0,0.02694551]
[1646599594865,0.20369153,38909.0,38907.0,0.02694551]
[1646599595064,0.74755266,38908.0,38907.0,0.02694551]
[1646599595266,0.94755266,38908.0,38907.0,0.02694551]
[1646599596614,0.56262066,38908.0,38907.0,0.02694551]
[1646599597416,0.2,38908.0,38907.0,0.02694551]
[1646599598614,0.584932,38908.0,38907.0,0.02694551]
[1646599598816,0.94755266,38908.0,38907.0,0.02694551]
[1646599599016,0.94755266,38908.0,38907.0,0.02820734]
[1646599599416,0.2,38908.0,38907.0,0.02820734]
[1646599602587,0.2,38908.0,38907.0,0.22820734]
[1646599603387,0.584932,38908.0,38907.0,0.22820734]
[1646599604016,0.2,38908.0,38907.0,0.10320734]
[1646599604616,0.584932,38908.0,38907.0,0.10320734]
[1646599605113,0.2,38908.0,38907.0,0.10320734]
[1646599605514,0.584932,38908.0,38907.0,0.10320734]
[1646599606716,0.2,38908.0,38907.0,0.10320734]
[1646599607765,0.584932,38908.0,38907.0,0.10320734]
[1646599608264,0.94517748,38908.0,38907.0,0.10320734]
[1646599608671,0.94517748,38908.0,38907.0,0.05320734]
[1646599608869,0.56024548,38908.0,38907.0,0.05320734]
[1646599609170,0.94517748,38908.0,38907.0,0.0545593]
[1646599610574,0.56024548,38908.0,38907.0,0.0545593]
[1646599611817,0.2,38908.0,38907.0,0.0545593]
[1646599617782,0.19993124,38908.0,38907.0,0.0545593]
[1646599630369,0.19993124,38908.0,38907.0,0.4394913]
[1646599630773,0.19993124,38908.0,38907.0,0.0545593]
[1646599634515,0.19493124,38908.0,38907.0,0.0545593]
[1646599634915,0.36245038,38909.0,38907.0,0.0545593]
[1646599635217,0.19993124,38908.0,38907.0,0.0545593]
[1646599636618,0.19493124,38908.0,38907.0,0.0545593]
[1646599636815,0.00368323,38909.0,38907.0,0.0545593]
[1646599637215,0.19993124,38908.0,38907.0,0.0545593]
[1646599640067,0.19493124,38908.0,38907.0,0.0545593]
[1646599640468,0.00768323,38909.0,38907.0,0.0545593]
[1646599640667,0.19993124,38908.0,38907.0,0.0545593]
[1646599649232,0.58486324,38908.0,38907.0,0.0545593]
[1646599649433,0.63646324,38908.0,38907.0,0.0545593]
[1646599649630,1.62316324,38908.0,38907.0,0.0545593]
[1646599649831,2.1982759,38908.0,38907.0,0.0545593]
[1646599650431,2.2111259,38908.0,38907.0,0.0545593]
[1646599651434,2.64051256,38908.0,38907.0,0.0545593]
[1646599651633,2.62766256,38908.0,38907.0,0.0545593]
[1646599652233,2.16963415,38908.0,38907.0,0.0545593]
[1646599653082,2.18248415,38908.0,38907.0,0.0545593]
[1646599654183,2.16963415,38908.0,38907.0,0.0545593]
[1646599654383,2.55287081,38908.0,38907.0,0.0545593]
[1646599658529,2.55287081,38908.0,38907.0,0.0513483]
[1646599661371,1.76617081,38908.0,38907.0,0.0513483]
[1646599662571,1.71457081,38908.0,38907.0,0.0513483]
[1646599665121,1.70957081,38908.0,38907.0,0.0513483]
[1646599680022,1.70457081,38908.0,38907.0,0.0513483]
[1646599690176,1.58081069,38908.0,38907.0,0.0513483]
[1646599690382,1.19587869,38908.0,38907.0,0.0513483]
[1646599690575,0.51271079,38908.0,38907.0,0.0513483]
[1646599690774,0.41938666,38908.0,38907.0,0.0513483]
[1646599691376,0.41938666,38908.0,38907.0,0.4980658]
[1646599691577,0.41938666,38908.0,38907.0,0.9088178]
[1646599691776,0.00368323,38909.0,38908.0,0.14295177]
[1646599691977,0.00368323,38909.0,38908.0,0.50189927]
[1646599692175,0.00368323,38909.0,38908.0,0.16877177]
[1646599692681,0.00350288,38909.0,38908.0,0.16877177]
[1646599693680,0.00350288,38909.0,38908.0,0.53011241]
[1646599695936,0.00350288,38909.0,38908.0,0.50429241]
[1646599696639,0.00350288,38909.0,38908.0,0.14295177]
[1646599698676,0.00350288,38909.0,38908.0,0.16877177]
[1646599698874,0.00350288,38909.0,38908.0,0.16995359]
[1646599701077,0.00350288,38909.0,38908.0,0.91622623]
[1646599701279,0.00238035,38910.0,38909.0,1.12582]
[1646599701528,0.00238035,38910.0,38909.0,1.53876064]
[1646599702223,0.0022,38910.0,38909.0,1.53876064]
[1646599707377,0.0022,38910.0,38909.0,1.17742]
[1646599707578,0.0022,38910.0,38909.0,1.91328438]
[1646599707776,0.00034818,38910.0,38909.0,1.91328438]
[1646599709029,0.00034818,38910.0,38909.0,0.73704506]
[1646599709228,0.00026292,38910.0,38909.0,0.73704506]
[1646599709428,0.00026292,38910.0,38909.0,0.76286506]
[1646599709929,0.00026292,38910.0,38909.0,1.14779706]
[1646599710129,0.00026292,38910.0,38909.0,1.20467473]
[1646599710929,0.00026292,38910.0,38909.0,1.14779706]
[1646599713272,0.00026292,38910.0,38909.0,0.76286506]
[1646599714172,0.00026292,38910.0,38909.0,0.8128614]
[1646599716430,0.00026292,38910.0,38909.0,0.86822381]
[1646599717027,0.00026292,38910.0,38909.0,0.8128614]
[1646599717231,0.00026292,38910.0,38909.0,0.7870414]
[1646599717827,0.20019416,38910.0,38909.0,0.05117702]
[1646599720579,0.20019416,38910.0,38909.0,0.43610902]
[1646599720980,0.20019416,38910.0,38909.0,0.05117702]
[1646599721181,0.20019416,38910.0,38909.0,0.43610902]
[1646599721882,0.00348035,38911.0,38910.0,0.36210411]
[1646599722481,0.20348035,38911.0,38910.0,0.36210411]
[1646599722681,0.2033,38911.0,38910.0,0.36210411]
[1646599722881,0.1983,38911.0,38910.0,0.52028325]
[1646599723383,0.00458048,38912.0,38910.0,0.52028325]
[1646599723581,0.584932,38911.0,38910.0,0.52028325]
[1646599724626,0.2,38911.0,38910.0,0.52028325]
[1646599725430,0.584932,38911.0,38910.0,0.52028325]
[1646599725629,0.579932,38911.0,38910.0,0.52028325]
[1646599726032,0.384932,38911.0,38910.0,0.52028325]
[1646599726231,0.584932,38911.0,38910.0,0.52028325]
[1646599728876,0.584932,38911.0,38910.0,0.52146279]
[1646599730077,0.2,38911.0,38910.0,0.52146279]
[1646599731080,0.2,38911.0,38910.0,0.57145913]
[1646599741332,0.00458035,38912.0,38910.0,0.64255913]
[1646599741536,0.00458035,38912.0,38911.0,0.384932]
[1646599741732,0.00458035,38912.0,38910.0,0.64255913]
[1646599741931,0.0044,38912.0,38911.0,0.384932]
[1646599743184,0.0044,38912.0,38911.0,0.44377337]
[1646599744284,0.0044,38912.0,38911.0,0.384932]
[1646599744684,0.0044,38912.0,38910.0,0.57267534]
[1646599744889,0.0044,38912.0,38911.0,0.384932]
[1646599745594,0.0044,38912.0,38911.0,0.00746]
[1646599748943,0.0044,38912.0,38911.0,0.00880675]
[1646599751981,0.2022,38915.0,38914.0,0.02182227]
[1646599752481,0.0011,38915.0,38914.0,0.40675427]
[1646599752698,0.0011,38922.0,38916.0,1.66806934]
[1646599752891,0.0022,38927.0,38920.0,1.1]
[1646599753187,0.0022,38930.0,38920.0,1.1]
[1646599753188,0.0022,38930.0,38925.0,0.16171804]
[1646599753383,0.05,38936.0,38927.0,0.384788]
[1646599753584,0.028545,38936.0,38930.0,0.05255735]
[1646599753784,0.028545,38936.0,38932.0,0.18919628]
[1646599754039,0.028545,38936.0,38933.0,0.05901]
[1646599754239,0.0011,38941.0,38934.0,1.1]
[1646599754443,0.1972,38943.0,38936.0,1.1]
[1646599754640,0.280464,38945.0,38937.0,0.42053576]
[1646599754839,0.180464,38945.0,38938.0,0.18799552]
[1646599755037,0.180464,38945.0,38944.0,0.21818096]
[1646599755243,0.180464,38945.0,38944.0,0.22557896]
[1646599755440,0.175464,38945.0,38944.0,0.22057896]
[1646599755639,0.175464,38945.0,38944.0,0.63371172]
[1646599755839,0.175464,38945.0,38944.0,0.27217896]
[1646599757548,0.175464,38945.0,38944.0,0.65193498]
[1646599757789,0.175464,38945.0,38944.0,0.62611498]
[1646599758087,0.175464,38945.0,38944.0,1.27061498]
[1646599758284,0.175464,38945.0,38944.0,0.91667896]
[1646599758683,0.17537868,38945.0,38944.0,0.91667896]
[1646599759281,0.17037868,38945.0,38944.0,0.91667896]
[1646599759483,0.17037868,38945.0,38944.0,0.91899811]
[1646599759484,0.16037868,38945.0,38944.0,0.91899811]
[1646599761438,0.16037868,38945.0,38944.0,1.38988413]
[1646599762240,0.16037868,38945.0,38944.0,1.36406413]
[1646599762639,0.16037868,38945.0,38944.0,1.38988413]
[1646599762840,0.00239964,38946.0,38945.0,1.510411]
[1646599763043,0.00239964,38946.0,38945.0,0.436191]
[1646599763240,0.00239964,38946.0,38945.0,0.78996154]
[1646599763440,0.00239964,38946.0,38945.0,0.436191]
[1646599763640,0.0022,38946.0,38945.0,0.436191]
[1646599764243,0.0022,38946.0,38945.0,0.384591]
[1646599764642,0.0022,38946.0,38945.0,0.007397]
[1646599764844,0.0022,38946.0,38944.0,0.26431811]
[1646599765041,0.0044,38947.0,38944.0,0.26431811]
[1646599765042,0.00179319,38947.0,38944.0,0.26431811]
[1646599765887,0.15875269,38945.0,38944.0,0.26431811]
[1646599766090,0.54368469,38945.0,38944.0,0.05113715]
[1646599766489,0.64368469,38945.0,38944.0,0.05113715]
[1646599766987,0.94368469,38945.0,38944.0,0.05113715]
[1646599767385,0.94368469,38945.0,38944.0,0.03613715]
[1646599767992,0.384932,38943.0,38941.0,0.002]
[1646599768188,1.45118012,38942.0,38919.0,0.62348796]
[1646599768390,2.51412,38942.0,38919.0,0.27273948]
[1646599768585,2.51412,38942.0,38920.0,0.35074848]
[1646599768586,0.02502,38931.0,38920.0,0.35074848]
[1646599768788,0.02502,38931.0,38922.0,0.19824686]
[1646599769739,0.02502,38931.0,38928.0,0.15804319]
[1646599769740,0.384932,38930.0,38928.0,0.15804319]
[1646599770640,0.18405935,38929.0,38921.0,0.26860586]
[1646599770841,0.02502,38931.0,38921.0,0.26860586]
[1646599771043,0.02521303,38931.0,38921.0,0.26860586]
[1646599771639,0.02521303,38931.0,38926.0,0.19488413]
[1646599771941,0.19570495,38927.0,38926.0,0.19488413]
[1646599772140,0.02502,38931.0,38915.0,0.15]
[1646599772345,0.02502,38931.0,38922.0,0.002]
[1646599772346,0.51332076,38931.0,38922.0,0.002]
[1646599772545,0.53513442,38930.0,38922.0,0.002]
[1646599772790,1.1367,38928.0,38922.0,0.002]
[1646599772990,0.384932,38924.0,38922.0,0.0001]
[1646599773188,1.484932,38922.0,38914.0,0.02182227]
[1646599773388,0.384932,38920.0,38914.0,0.02182227]
[1646599773594,0.584932,38915.0,38914.0,0.02182227]
[1646599773789,0.609952,38915.0,38914.0,0.02182227]
[1646599774392,0.02502,38915.0,38914.0,0.02182227]
[1646599774991,0.02502,38915.0,38914.0,0.40675427]
[1646599775189,0.02502,38915.0,38914.0,0.02182227]
[1646599775590,0.02502,38915.0,38914.0,0.02924527]
[1646599775791,0.02502,38915.0,38914.0,0.02182227]
[1646599776196,0.05002,38915.0,38914.0,0.02182227]
[1646599777433,0.05002,38915.0,38914.0,0.03086247]
[1646599778635,0.05002,38915.0,38914.0,0.02765547]
[1646599779239,0.05002,38915.0,38914.0,0.41555891]
[1646599779438,0.05002,38915.0,38914.0,0.03062691]
[1646599781389,0.27926722,38919.0,38914.0,0.03062691]
[1646599782086,0.8368988,38920.0,38919.0,0.28293929]
[1646599782286,0.50869212,38920.0,38919.0,0.28293929]
[1646599783291,0.86168918,38920.0,38919.0,0.28293929]
[1646599784235,0.1,38921.0,38920.0,4.13831082]
[1646599784436,0.57446711,38921.0,38920.0,4.13831082]
[1646599784634,0.47446711,38921.0,38920.0,4.13831082]
[1646599785335,0.47439755,38921.0,38920.0,4.13831082]
[1646599785736,0.47420453,38921.0,38920.0,4.13831082]
[1646599785937,0.57420453,38921.0,38920.0,4.13831082]
[1646599788691,0.18936909,38921.0,38920.0,4.13831082]
[1646599788891,0.57427009,38921.0,38920.0,4.14126414]
[1646599789390,0.18936909,38921.0,38920.0,4.14126414]
[1646599789991,0.57427009,38921.0,38920.0,4.14126414]
[1646599793639,0.57427009,38921.0,38920.0,4.13977328]
[1646599797188,0.82587009,38921.0,38920.0,4.13977328]
[1646599797788,0.89016509,38921.0,38920.0,4.13977328]
[1646599801731,0.77427009,38921.0,38920.0,4.13977328]
[1646599801932,0.67427009,38921.0,38920.0,4.13977328]
[1646599802995,0.28936909,38921.0,38920.0,4.13977328]
[1646599803196,0.08936909,38921.0,38920.0,4.13977328]
[1646599803595,0.18936909,38921.0,38920.0,4.13977328]
[1646599805396,0.57427009,38921.0,38920.0,4.13977328]
[1646599805598,0.28936909,38921.0,38920.0,4.13977328]
[1646599805797,0.67427009,38921.0,38920.0,4.13977328]
[1646599805998,0.28936909,38921.0,38920.0,4.13977328]
[1646599806443,0.67427009,38921.0,38920.0,4.13977328]
[1646599807550,0.28936909,38921.0,38920.0,4.13977328]
[1646599807944,0.46694079,38921.0,38920.0,4.13977328]
[1646599808343,0.85184179,38921.0,38920.0,4.13977328]
[1646599809746,0.63635125,38921.0,38920.0,4.13977328]
[1646599813488,0.53635125,38921.0,38920.0,4.13977328]
[1646599815240,0.93421924,38921.0,38920.0,4.13977328]
[1646599815442,0.82891105,38921.0,38920.0,4.13977328]
[1646599816038,0.82891105,38921.0,38920.0,3.7539203]
[1646599816237,1.32891105,38921.0,38920.0,3.7539203]
[1646599817438,1.48747582,38921.0,38920.0,3.7539203]
[1646599818089,1.541642,38921.0,38920.0,3.7539203]
[1646599818387,1.55577176,38921.0,38920.0,3.6294732]
[1646599820988,2.93937176,38921.0,38920.0,3.6294732]
[1646599821536,3.71017176,38921.0,38920.0,3.6294732]
[1646599821735,3.65600558,38921.0,38920.0,3.6294732]
[1646599822240,2.69661105,38921.0,38920.0,3.6294732]
[1646599823244,2.09971105,38921.0,38920.0,3.6294732]
[1646599823443,2.04811105,38921.0,38920.0,3.6294732]
[1646599826297,1.40715125,38921.0,38920.0,3.6294732]
[1646599826589,0.93793896,38921.0,38920.0,3.83907021]
[1646599826785,0.7708,38921.0,38920.0,3.83907021]
[1646599830942,0.7708,38921.0,38920.0,3.83760775]
[1646599831339,0.7708,38921.0,38920.0,3.62801074]
[1646599833782,0.7708,38921.0,38920.0,3.63035981]
[1646599834587,1.155701,38921.0,38920.0,3.63035981]
[1646599836192,1.255701,38921.0,38920.0,3.63035981]
[1646599836440,1.46427134,38921.0,38920.0,3.63035981]
[1646599836640,1.65937004,38921.0,38920.0,3.63035981]
[1646599837249,1.80032984,38921.0,38920.0,3.63035981]
[1646599837444,1.93916336,38921.0,38920.0,3.63035981]
[1646599837642,1.93916336,38921.0,38920.0,3.62604339]
[1646599837843,1.88969663,38921.0,38920.0,3.62604339]
[1646599838042,3.12510668,38921.0,38920.0,0.83183949]
[1646599838243,3.33496686,38921.0,38920.0,0.4450696]
[1646599838844,2.271601,38920.0,38919.0,8.89e-06]
[1646599839041,2.5126161,38920.0,38919.0,8.89e-06]
[1646599839340,2.61259079,38920.0,38919.0,8.89e-06]
[1646599839940,3.11259079,38920.0,38919.0,8.89e-06]
[1646599846652,1.22589079,38920.0,38919.0,8.89e-06]
[1646599847549,1.17429079,38920.0,38919.0,8.89e-06]
[1646599848098,1.084901,38920.0,38919.0,8.89e-06]
[1646599848298,0.484901,38920.0,38919.0,8.89e-06]
[1646599848703,0.384901,38920.0,38919.0,8.89e-06]
[1646599854244,0.513489,38920.0,38919.0,8.89e-06]